fUST/lending_fUST_20240807
["ID","MTS","AMOUNT","RATE_DAILY","PERIOD"]
[334318141,1722963041229,-500.0,0.00034976,7]
[334318142,1722963041239,-500.0,0.00034976,7]
[334318143,1722963041249,-500.0,0.00034976,7]
[334318144,1722963041258,-500.0,0.00034976,7]
[334318145,1722963041267,-500.29888457,0.00034976,7]
[334318146,1722963041277,-15794.860008,0.00034977,4]
[334318147,1722963041287,-500.0,0.00034978,14]
[334318148,1722963041297,-4062.43,0.00034987,14]
[334318149,1722963041306,-1000.0,0.00034987,2]
[334318150,1722963041317,-15794.860008,0.00034989,4]
[334318151,1722963041330,-505.14,0.00034989,2]
[334318152,1722963041339,-505.14,0.00034989,2]
[334318153,1722963041348,-505.14,0.00034989,2]
[334318154,1722963041358,-505.14,0.00034989,2]
[334318155,1722963041367,-505.14,0.00034989,2]
[334318156,1722963041377,-505.14,0.00034989,2]
[334318157,1722963041386,-505.14,0.00034989,2]
[334318158,1722963041395,-505.14,0.00034989,2]
[334318159,1722963041406,-505.14,0.00034989,2]
[334318160,1722963041416,-1583.57734924,0.00034989,14]
[334318161,1722963041436,-562.68206877,0.00034989,14]
[334318162,1722963041448,-1916.17058199,0.00034989,14]
[334318163,1722963041457,-4062.43,0.00034989,14]
[334318164,1722963041466,-4062.43,0.00034989,14]
[334318165,1722963041476,-1000.0,0.00034989,2]
[334318166,1722963041485,-306.6740884,0.00034989,2]
[334318214,1722963043348,-693.3259116,0.00034989,2]
[334318215,1722963043357,-1000.0,0.00034989,2]
[334318216,1722963043367,-500.0,0.00034989,14]
[334318217,1722963043378,-239.28263907,0.00034989,14]
[334318218,1722963043388,-8925.77516079,0.0003499,4]
[334318219,1722963043408,-6869.08484721,0.0003499,4]
[334318220,1722963043419,-500.0,0.0003499,3]
[334318221,1722963043428,-151.0,0.0003499,7]
[334318222,1722963043438,-151.0,0.0003499,7]
[334318223,1722963043448,-146.94707003,0.0003499,7]
[334318224,1722963043459,-4.05292997,0.0003499,7]
[334318225,1722963043469,-151.0,0.0003499,7]
[334318226,1722963043478,-151.0,0.0003499,7]
[334318227,1722963043487,-151.0,0.0003499,7]
[334318228,1722963043497,-151.0,0.0003499,7]
[334318229,1722963043507,-151.0,0.0003499,7]
[334318230,1722963043516,-151.0,0.0003499,7]
[334318231,1722963043526,-151.0,0.0003499,7]
[334318233,1722963043535,-151.0,0.0003499,7]
[334318236,1722963043545,-480.173704,0.0003499,7]
[334318239,1722963043555,-480.173704,0.0003499,7]
[334318241,1722963043565,-151.0,0.0003499,7]
[334318243,1722963043574,-151.0,0.0003499,7]
[334318244,1722963043584,-319.427451,0.0003499,7]
[334318245,1722963043594,-319.427451,0.0003499,7]
[334318246,1722963043603,-151.0,0.0003499,7]
[334318247,1722963043612,-247.080508,0.0003499,7]
[334318248,1722963043622,-247.080508,0.0003499,7]
[334318249,1722963043631,-151.0,0.0003499,7]
[334318250,1722963043640,-382.90927937,0.0003499,4]
[334318251,1722963043652,-9434.00603072,0.0003499,4]
[334318252,1722963043664,-495.0,0.0003499,4]
[334318283,1722963046438,-116046.96475391,0.0003499,4]
[334318284,1722963046448,-4062.43,0.00034997,14]
[334318285,1722963046458,-1000.0,0.00034997,2]
[334318286,1722963046468,-4062.43,0.00034999,14]
[334318287,1722963046477,-4062.43,0.00034999,14]
[334318288,1722963046486,-4062.43,0.00034999,14]
[334318289,1722963046495,-4062.43,0.00034999,14]
[334318290,1722963046505,-4062.43,0.00034999,14]
[334318291,1722963046515,-4062.43,0.00034999,14]
[334318292,1722963046524,-4062.43,0.00034999,14]
[334318293,1722963046533,-4062.43,0.00034999,14]
[334318294,1722963046543,-4062.43,0.00034999,14]
[334318295,1722963046552,-4062.43,0.00034999,14]
[334318296,1722963046562,-4062.43,0.00034999,14]
[334318297,1722963046572,-4062.43,0.00034999,14]
[334318298,1722963046582,-4062.49,0.00034999,14]
[334318299,1722963046593,-1000.0,0.00034999,2]
[334318300,1722963046603,-1000.0,0.00034999,2]
[334318301,1722963046612,-760.5859789,0.00034999,2]
[334318302,1722963046621,-5000.0,0.00035,35]
[334318303,1722963046631,-7112.2303819,0.00035,21]
[334318304,1722963046642,-65595.22849354,0.00035,2]
[334318305,1722963046651,-350017.54407982,0.00035,7]
[334318306,1722963046661,-188.67,0.00035,30]
[334318307,1722963046670,-445.21,0.00035,14]
[334318308,1722963046679,-3274.89,0.00035,14]
[334318309,1722963046689,-1000.0,0.00035,35]
[334318310,1722963046699,-503.29952234,0.00035,120]
[334318311,1722963046708,-4145.22009395,0.00035,120]
[334318312,1722963046717,-151.0,0.00035,7]
[334318313,1722963046727,-306.669576,0.00035,18]
[334318314,1722963046736,-150.112233,0.00035,6]
[334318315,1722963046745,-186.657595,0.00035,7]
[334318316,1722963046754,-151.0,0.00035,7]
[334318317,1722963046763,-159.92555,0.00035,7]
[334318318,1722963046772,-151.0,0.00035,7]
[334318319,1722963046782,-296.227778,0.00035,7]
[334318320,1722963046791,-480.173704,0.00035,7]
[334318321,1722963046800,-480.173704,0.00035,7]
[334318322,1722963046810,-151.0,0.00035,7]
[334318323,1722963046820,-319.427451,0.00035,7]
[334318324,1722963046829,-319.427451,0.00035,7]
[334318325,1722963046838,-151.0,0.00035,7]
[334318326,1722963046847,-247.080508,0.00035,7]
[334318327,1722963046857,-247.080508,0.00035,7]
[334318328,1722963046866,-151.0,0.00035,7]
[334318329,1722963046875,-150.112235,0.00035,9]
[334318330,1722963046885,-203.923066,0.00035,7]
[334318331,1722963046894,-203.923066,0.00035,7]
[334318332,1722963046904,-151.0,0.00035,7]
[334318333,1722963046914,-151.0,0.00035,7]
[334318334,1722963046926,-151.0,0.00035,7]
[334318335,1722963046937,-373.777224,0.00035,7]
[334318336,1722963046947,-373.777224,0.00035,7]
[334318337,1722963046958,-154.81349605,0.00035,4]
[334318338,1722963046968,-313.33651,0.00035,7]
[334318339,1722963046979,-313.33651,0.00035,7]
[334318340,1722963046989,-182.940371,0.00035,7]
[334318341,1722963046999,-182.940371,0.00035,7]
[334318342,1722963047009,-151.461701,0.00035,7]
[334318343,1722963047019,-151.0,0.00035,7]
[334318344,1722963047029,-747.306424,0.00035,7]
[334318345,1722963047040,-747.306424,0.00035,7]
[334318346,1722963047051,-151.0,0.00035,7]
[334318347,1722963047060,-151.0,0.00035,7]
[334318348,1722963047070,-151.0,0.00035,7]
[334318349,1722963047079,-151.0,0.00035,7]
[334318350,1722963047089,-783.326385,0.00035,7]
[334318351,1722963047098,-151.0,0.00035,7]
[334318352,1722963047107,-783.326385,0.00035,7]
[334318353,1722963047116,-151.0,0.00035,7]
[334318354,1722963047125,-151.0,0.00035,7]
[334318355,1722963047134,-841.334637,0.00035,7]
[334318356,1722963047143,-841.334637,0.00035,7]
[334318357,1722963047153,-411.12203,0.00035,7]
[334318358,1722963047164,-40000.0,0.00035,5]
[334318359,1722963047173,-191.540489,0.00035067,2]
[334318360,1722963047182,-151.0,0.00035205,120]
[334318361,1722963047191,-500.0,0.00035234,5]
[334318362,1722963047201,-500.0,0.00035234,5]
[334318363,1722963047210,-151.0,0.00035434,15]
[334318364,1722963047219,-151.0,0.00035434,15]
[334318365,1722963047229,-15794.860008,0.00035451,4]
[334318366,1722963047238,-151.0,0.00035452,7]
[334318367,1722963047247,-151.0,0.00035452,7]
[334318368,1722963047256,-480.173704,0.00035452,7]
[334318369,1722963047265,-480.173704,0.00035452,7]
[334318370,1722963047275,-319.427451,0.00035452,7]
[334318371,1722963047285,-319.427451,0.00035452,7]
[334318372,1722963047294,-259.027347,0.00035452,7]
[334318373,1722963047304,-151.0,0.00035452,7]
[334318374,1722963047314,-223.0568494,0.00035452,7]
[334318375,1722963047327,-783.326385,0.00035452,7]
[334318376,1722963047337,-783.326385,0.00035452,7]
[334318377,1722963047346,-151.0,0.00035452,7]
[334318378,1722963047355,-151.0,0.00035452,7]
[334318379,1722963047365,-841.334637,0.00035452,7]
[334318380,1722963047375,-841.334637,0.00035452,7]
[334318381,1722963047384,-150.112233,0.000356,7]
[334318383,1722963047394,-835.95872442,0.00035699,2]
[334318385,1722963047403,-5000.0,0.00036,36]
[334318387,1722963047414,-151.0,0.00036,7]
[334318389,1722963047424,-247.080508,0.00036,7]
[334318390,1722963047433,-247.080508,0.00036,7]
[334318391,1722963047647,-203.923066,0.00036,7]
[334318392,1722963047656,-203.923066,0.00036,7]
[334318393,1722963047665,-151.0,0.00036,7]
[334318394,1722963047674,-373.777224,0.00036,7]
[334318395,1722963047683,-373.777224,0.00036,7]
[334318396,1722963047692,-313.33651,0.00036,7]
[334318397,1722963047701,-313.33651,0.00036,7]
[334318398,1722963047711,-182.940371,0.00036,7]
[334318399,1722963047720,-182.940371,0.00036,7]
[334318400,1722963047729,-747.306424,0.00036,7]
[334318401,1722963047738,-747.306424,0.00036,7]
[334318402,1722963047747,-151.0,0.00036,7]
[334318403,1722963047756,-151.0,0.00036,7]
[334318404,1722963047765,-151.0,0.00036,7]
[334318405,1722963047774,-150.0,0.00036067,2]
[334318406,1722963047783,-153.0,0.00036164,2]
[334318407,1722963047792,-306.0,0.00036164,2]
[334318408,1722963047800,-306.8795636,0.00036164,2]
[334318409,1722963047809,-150.112233,0.000362,9]
[334318410,1722963047820,-150.0,0.00036233,2]
[334318411,1722963047830,-208.5292725,0.00036247,2]
[334318412,1722963047839,-153.0,0.00036247,2]
[334318413,1722963047848,-207.0547247,0.00036247,2]
[334318414,1722963047857,-207.0547247,0.00036247,2]
[334318415,1722963047866,-151.0,0.00036301,120]
[334318416,1722963047876,-402.00344159,0.00036342,5]
[334318417,1722963047885,-400.0,0.00036342,2]
[334318418,1722963047894,-154.82677128,0.00036363,4]
[334318419,1722963047904,-183.676784,0.00036381,2]
[334318420,1722963047915,-530.73,0.00036448,2]
[334318421,1722963047926,-835.95872442,0.00036498,2]
[334318422,1722963047936,-150.112233,0.000365,8]
[334318423,1722963047945,-294.2025256,0.00036548,2]
[334318424,1722963047955,-2000.0,0.000368,60]
[334318425,1722963047965,-3274.89,0.000368,14]
[334318426,1722963047973,-151.0,0.000368,7]
[334318427,1722963047982,-150.112233,0.000368,5]
[334318428,1722963047992,-151.0,0.00036849,15]
[334318429,1722963048001,-151.0,0.00036849,15]
[334318430,1722963048010,-4301.936,0.00036857,7]
[334318431,1722963048021,-188.67,0.000369,30]
[334318432,1722963048030,-445.21,0.000369,14]
[334318433,1722963048039,-2225.85800573,0.00036982,2]
[334318434,1722963048048,-153.0,0.00036986,2]
[334318435,1722963048058,-5000.0,0.00037,37]
[334318436,1722963048067,-1000.0,0.00037,37]
[334318437,1722963048079,-500.0,0.00037088,5]
[334318438,1722963048088,-500.0,0.00037088,5]
[334318439,1722963048097,-835.95872442,0.00037297,2]
[334318440,1722963048107,-150.112233,0.000374,6]
[334318441,1722963048117,-260.0875782,0.00037534,2]
[334318442,1722963048127,-711.61188729,0.00037575,2]
[334318443,1722963048137,-2620.87,0.000377,7]
[334318444,1722963048147,-203.923066,0.000378,7]
[334318445,1722963048157,-203.923066,0.000378,7]
[334318446,1722963048166,-151.0,0.000378,7]
[334318447,1722963048176,-373.777224,0.000378,7]
[334318448,1722963048185,-373.777224,0.000378,7]
[334318449,1722963048194,-313.33651,0.000378,7]
[334318450,1722963048203,-313.33651,0.000378,7]
[334318451,1722963048212,-182.940371,0.000378,7]
[334318452,1722963048222,-182.940371,0.000378,7]
[334318453,1722963048231,-747.306424,0.000378,7]
[334318454,1722963048240,-747.306424,0.000378,7]
[334318455,1722963048249,-151.0,0.000378,7]
[334318456,1722963048259,-151.0,0.000378,7]
[334318457,1722963048268,-151.0,0.000378,7]
[334318458,1722963048277,-151.0,0.00037808,120]
[334318459,1722963048287,-15794.860008,0.0003788,4]
[334318460,1722963048297,-9675.61207006,0.0003789,5]
[334318461,1722963048307,-151.0,0.000379,7]
[334318462,1722963048317,-151.0,0.000379,7]
[334318463,1722963048329,-480.173704,0.000379,7]
[334318464,1722963048339,-480.173704,0.000379,7]
[334318465,1722963048348,-319.427451,0.000379,7]
[334318466,1722963048358,-319.427451,0.000379,7]
[334318467,1722963048368,-151.0,0.000379,7]
[334318468,1722963048378,-783.326385,0.000379,7]
[334318469,1722963048387,-783.326385,0.000379,7]
[334318470,1722963048398,-151.0,0.000379,7]
[334318471,1722963048408,-151.0,0.000379,7]
[334318472,1722963048418,-841.334637,0.000379,7]
[334318473,1722963048428,-59257.48634044,0.000379,120]
[334318474,1722963048438,-841.334637,0.000379,7]
[334318475,1722963048447,-15794.860008,0.0003799,4]
[334318476,1722963048456,-5000.0,0.00038,38]
[334318477,1722963048466,-4390.51910033,0.00038,21]
[334318478,1722963049703,169.72842,0.00014247,2]
[334318479,1722963065013,4.1171968,0.00017269,2]
[334318480,1722963065034,150.76118211,0.00017269,2]
[334318481,1722963089061,246.79212598,0.00021916,2]
[334318483,1722963113162,600.8534117,0.00021916,2]
[334318484,1722963113250,521.86930577,0.00021916,2]
[334318485,1722963115229,208.88317408,0.00014247,2]
[334318486,1722963115881,412.94081029,0.00021916,2]
[334318488,1722963125121,201.42607315,0.00021916,2]
[334318489,1722963128109,154.84733447,0.00021916,2]
[334318490,1722963128758,45.96548375,0.00017269,3]
[334318491,1722963128781,2231.90760742,0.00017269,3]
[334318492,1722963129918,154.76012181,0.00026564,2]
[334318493,1722963131231,429.172496,0.00021916,2]
[334318494,1722963524186,165.750106,0.00014247,2]
[334318502,1722964006050,3608.33001858,0.00014247,2]
[334318503,1722964037091,-156.61103376,0.00016532,2]
[334318504,1722964037114,-154.76012181,0.00016532,2]
[334318505,1722964037138,-300.0,0.00017018,2]
[334318506,1722964037161,-300.0,0.00017018,2]
[334318507,1722964037182,-77.53129125,0.00017019,2]
[334318508,1722964044082,-413.84321155,0.00016095,2]
[334318509,1722964044104,-705.47447715,0.00016347,2]
[334318510,1722964044128,-155.01550852,0.00016532,2]
[334318511,1722964044150,-172.72504466,0.00016532,2]
[334318512,1722964044172,-177.38649127,0.00016532,2]
[334318513,1722964044193,-375.39717836,0.00017019,2]
[334318514,1722964044216,-306.87106398,0.00017019,2]
[334318515,1722964048105,-532.14086008,0.00016347,2]
[334318516,1722964048126,-727.52933543,0.00016347,2]
[334318517,1722964048149,-216.38317059,0.00016532,2]
[334318518,1722964048170,-156.96415589,0.00016532,2]
[334318519,1722964048191,-296.92058429,0.00017019,2]
[334318520,1722964048214,-244.84557874,0.00017019,2]
[334318521,1722964048235,-196.12312757,0.00017019,2]
[334318522,1722964051377,-652.40974427,0.00017019,2]
[334318523,1722964051410,-154.72922386,0.00017019,2]
[334318524,1722964051434,-155.03009972,0.00017019,2]
[334318525,1722964051456,-322.60271581,0.00017019,2]
[334318526,1722964051482,-506.48190828,0.00017269,2]
[334318527,1722964051503,-215.82912052,0.00018587,2]
[334318528,1722964076479,169.72842,0.00014247,2]
[334318530,1722964152088,-234.95688653,0.00019477,2]
[334318531,1722964152113,-2758.54772765,0.00019547,2]
[334318532,1722964152140,-160.1642143,0.00019999,2]
[334318533,1722964152163,-156.8188046,0.00019999,2]
[334318534,1722964152185,-300.0,0.00019999,2]
[334318535,1722964152206,-300.0,0.00019999,2]
[334318536,1722964152228,-295.89957039,0.0002,2]
[334318537,1722964152249,-319.47476254,0.00020629,2]
[334318538,1722964152269,-169.15466639,0.00021916,2]
[334318539,1722964152291,-420.0,0.00021999,2]
[334318540,1722964152312,-587.0,0.00024199,2]
[334318541,1722964152336,-3000.0,0.00026543,2]
[334318542,1722964152358,-19474.3835482,0.00026543,2]
[334318543,1722964152379,-329.54004567,0.00026564,2]
[334318544,1722964152400,-294.0,0.00026619,2]
[334318545,1722964167098,-165.750106,0.00029589,2]
[334318546,1722964167122,-164.311131,0.00030728,2]
[334318568,1722964232402,-188.26194,0.00031507,120]
[334318569,1722964232413,-1000.0,0.00032,32]
[334318570,1722964232424,-182.28089205,0.00032199,2]
[334318571,1722964232436,-363.21192594,0.000322,11]
[334318572,1722964232448,-456.15517706,0.000322,11]
[334318573,1722964232458,-164.311131,0.00032329,2]
[334318574,1722964232473,-1648.37669194,0.00032392,2]
[334318575,1722964232486,-67.3467667,0.00032392,2]
[334318576,1722964232495,-841.95856604,0.00032484,3]
[334318577,1722964232507,-3746.46,0.00032484,3]
[334318578,1722964232520,-1069.69143396,0.00032484,3]
[334318579,1722964232530,-4715.09,0.00032484,3]
[334318580,1722964232539,-4315.28763904,0.00032494,30]
[334318633,1722964238497,-7155.00000003,0.00032494,30]
[334318662,1722964240724,-101791.70037173,0.00032494,30]
[334318663,1722964240734,-628.55584038,0.00032494,120]
[334318665,1722964240744,-150.0,0.00032494,14]
[334318666,1722964240753,-199.219999,0.00032494,14]
[334318668,1722964240764,-150.112233,0.000325,6]
[334318670,1722964240774,-1451.5,0.00032602,14]
[334318672,1722964240784,-1451.5,0.00032602,14]
[334318673,1722964240795,-1451.5,0.00032602,14]
[334318674,1722964240808,-500.0,0.00032876,14]
[334318675,1722964240818,-500.0,0.00032999,7]
[334318676,1722964240829,-204.00416374,0.00032999,7]
[334318677,1722964240840,-500.0,0.00032999,7]
[334318678,1722964240852,-500.0,0.00032999,7]
[334318679,1722964240862,-500.29888457,0.00032999,7]
[334318680,1722964240873,-500.0,0.00032999,7]
[334318681,1722964240883,-500.0,0.00032999,7]
[334318682,1722964240893,-635.51264099,0.00032999,7]
[334318683,1722964240903,-500.0,0.00032999,7]
[334318684,1722964240913,-500.0,0.00032999,7]
[334318685,1722964240923,-500.0,0.00032999,7]
[334318686,1722964240935,-2164.55601822,0.00033,120]
[334318687,1722964240946,-500.0,0.0003315,16]
[334318688,1722964240955,-500.0,0.00033424,18]
[334318689,1722964240965,-629.242689,0.00033698,20]
[334318690,1722964240974,-1715.7234586,0.00033858,2]
[334318691,1722964240984,-1832.00018004,0.00034,4]
[334318692,1722964240993,-1000.0,0.00034,34]
[334318693,1722964241002,-1451.5,0.00034687,14]
[334318694,1722964241012,-16351.53635475,0.0003469,2]
[334318695,1722964241021,-187.374539,0.00034881,2]
[334318696,1722964241030,-2000.0,0.00034898,45]
[334318697,1722964241039,-2000.0,0.00034898,45]
[334318698,1722964241048,-2000.0,0.00034898,45]
[334318699,1722964241058,-2000.0,0.00034898,45]
[334318700,1722964241067,-710.58805068,0.00034898,45]
[334318701,1722964241077,-1451.5,0.00034898,14]
[334318702,1722964241086,-1451.5,0.00034898,14]
[334318703,1722964241095,-1451.5,0.00034988,14]
[334318704,1722964241107,-500.0,0.00034998,3]
[334318705,1722964241117,-976.0,0.00035,2]
[334318706,1722964241127,-1715.7234586,0.00035324,2]
[334318707,1722964241136,-151.0,0.00035444,15]
[334318708,1722964241146,-175.0,0.0003589,2]
[334318709,1722964241155,-175.0,0.00036,2]
[334318710,1722964241165,-939.11021828,0.0003647,2]
[334318711,1722964241174,-188.26194,0.00036758,120]
[334318712,1722964241184,-1715.7234586,0.0003679,2]
[334318713,1722964241193,-151.0,0.00036856,15]
[334318714,1722964241203,-151.0,0.00036856,15]
[334318715,1722964241212,-1000.0,0.00037,37]
[334318716,1722964241222,-5304.4077302,0.00037,30]
[334318717,1722964241232,-200.75161806,0.00037,120]
[334318718,1722964241242,-291.87799115,0.0003726,31]
[334318719,1722964241253,-175.0,0.00037397,2]
[334318720,1722964241263,-171248.55777622,0.00037484,120]
[334318721,1722964241273,-153.0,0.00037534,2]
[334318722,1722964241284,-8437.70713278,0.0003789,5]
[334318723,1722964241302,-1239.47293967,0.0003789,5]
[334318724,1722964241312,-7674.06875837,0.0003789,4]
[334318725,1722964241323,-1.54959946,0.00037899,14]
[334318726,1722964241335,-1449.95040054,0.00037899,14]
[334318727,1722964241345,-8416.71476433,0.000379,5]
[334318728,1722964241355,-77.55793513,0.0003799,4]
[334318740,1722964243467,-3754.5,0.0003799,4]
[334318741,1722964243526,-8.54071451,0.0003799,4]
[334318775,1722964246739,-498.39662215,0.0003799,4]
[334318776,1722964246754,-3335.07348658,0.0003799,4]
[334318777,1722964246766,-1451.5,0.00037999,14]
[334318778,1722964246778,-2671.37204683,0.00038,120]
[334318779,1722964246790,-1000.0,0.00038,3]
[334318780,1722964246802,-16868.0,0.00038,120]
[334318781,1722964246813,-16868.0,0.00038,120]
[334318782,1722964246825,-16868.0,0.00038,120]
[334318783,1722964246838,-1500.0,0.00038,2]
[334318784,1722964246851,-1500.0,0.00038,2]
[334318785,1722964246864,-1500.0,0.00038,2]
[334318786,1722964246875,-1449.22,0.00038,2]
[334318787,1722964246887,-1000.0,0.00038,38]
[334318788,1722964246902,-550.0,0.00038,31]
[334318789,1722964246915,-300.0,0.00038,120]
[334318790,1722964246927,-8033.35,0.00038,120]
[334318791,1722964246940,-1451.5,0.00038095,14]
[334318792,1722964246952,-114236.87619298,0.00038148,120]
[334318793,1722964246963,-3341.62063513,0.00038187,60]
[334318794,1722964246976,-2000.0,0.00038246,2]
[334318795,1722964246987,-5981.05710336,0.00038256,120]
[334318796,1722964246999,-1715.7234586,0.00038256,2]
[334318797,1722964247012,-779.69753091,0.00038256,2]
[334318798,1722964247025,-151.0,0.00038269,15]
[334318799,1722964247037,-151.0,0.00038269,15]
[334318800,1722964247049,-7674.06875837,0.00038335,4]
[334318801,1722964247061,-7674.06875837,0.00038346,4]
[334318802,1722964247072,-505.14,0.00038355,2]
[334318803,1722964247083,-505.14,0.00038355,2]
[334318804,1722964247095,-505.14,0.00038355,2]
[334318805,1722964247108,-505.14,0.00038355,2]
[334318806,1722964247120,-505.14,0.00038355,2]
[334318807,1722964247132,-505.14,0.00038355,2]
[334318808,1722964247145,-505.14,0.00038355,2]
[334318809,1722964247157,-505.14,0.00038355,2]
[334318810,1722964247168,-505.14,0.00038355,2]
[334318811,1722964247180,-505.14,0.00038355,2]
[334318812,1722964247191,-1451.5,0.00038355,14]
[334318813,1722964247203,-1451.5,0.00038355,14]
[334318814,1722964247215,-1451.5,0.00038355,14]
[334318815,1722964247228,-1451.5,0.00038355,14]
[334318816,1722964247240,-1451.5,0.00038355,14]
[334318817,1722964247255,-1451.5,0.00038355,14]
[334318818,1722964247265,-1451.5,0.00038355,14]
[334318819,1722964247275,-1451.5,0.00038355,14]
[334318820,1722964247284,-1451.5,0.00038355,14]
[334318821,1722964247294,-1451.5,0.00038355,14]
[334318822,1722964247304,-1451.5,0.00038355,14]
[334318823,1722964247314,-1451.5,0.00038355,14]
[334318824,1722964247324,-1451.5,0.00038355,14]
[334318825,1722964247334,-1451.57734924,0.00038355,14]
[334318826,1722964247343,-32728.81882499,0.00038356,21]
[334318827,1722964247355,-3556.11519096,0.00038356,21]
[334318828,1722964247367,-500.0,0.00038356,14]
[334318829,1722964247377,-500.0,0.00038356,14]
[334318830,1722964247386,-500.0,0.00038356,14]
[334318831,1722964247696,-500.0,0.00038356,14]
[334318832,1722964247724,-259.61313356,0.00038356,14]
[334318833,1722964247746,-1200.0,0.00038356,50]
[334318834,1722964247756,-501.85981448,0.00038356,14]
[334318835,1722964247767,-500.0,0.00038356,14]
[334318836,1722964247778,-500.0,0.00038356,14]
[334318837,1722964247788,-500.0,0.00038356,14]
[334318838,1722964247799,-500.0,0.00038356,14]
[334318839,1722964247809,-500.0,0.00038356,14]
[334318840,1722964247819,-500.0,0.00038356,14]
[334318841,1722964247830,-500.0,0.00038356,14]
[334318842,1722964247839,-500.76622722,0.00038356,14]
[334318843,1722964247849,-500.0,0.00038356,14]
[334318844,1722964247860,-500.0,0.00038356,14]
[334318845,1722964247870,-500.0,0.00038356,14]
[334318846,1722964247880,-744.63,0.00038356,14]
[334318847,1722964247890,-159.795908,0.00038356,7]
[334318848,1722964247900,-500.0,0.00038356,14]
[334318849,1722964247909,-500.0,0.00038356,14]
[334318850,1722964247921,-500.0,0.00038356,14]
[334318851,1722964247932,-2046.67,0.00038356,14]
[334318852,1722964247944,-500.0,0.00038356,14]
[334318853,1722964247954,-500.0,0.00038356,14]
[334318854,1722964247965,-500.0,0.00038356,14]
[334318855,1722964247974,-500.0,0.00038356,14]
[334318856,1722964247984,-682.94,0.00038356,14]
[334318857,1722964247993,-744.63,0.00038356,14]
[334318858,1722964248003,-808.08,0.00038356,14]
[334318859,1722964248014,-500.0,0.00038356,14]
[334318860,1722964248023,-500.0,0.00038356,14]
[334318861,1722964248035,-500.0,0.00038356,14]
[334318862,1722964248046,-500.0,0.00038356,14]
[334318863,1722964248056,-500.0,0.00038356,14]
[334318864,1722964248065,-500.0,0.00038356,14]
[334318865,1722964248074,-500.0,0.00038356,14]
[334318866,1722964248084,-502.99770501,0.00038356,14]
[334318867,1722964248093,-500.0,0.00038356,14]
[334318868,1722964248103,-500.0,0.00038356,14]
[334318869,1722964248112,-500.0,0.00038356,14]
[334318870,1722964248122,-601.33,0.00038356,14]
[334318871,1722964248131,-500.0,0.00038356,14]
[334318872,1722964248140,-500.0,0.00038356,14]
[334318873,1722964248150,-500.0,0.00038356,14]
[334318874,1722964248160,-651.68,0.00038356,14]
[334318875,1722964248170,-1307.23,0.00038356,14]
[334318876,1722964248179,-500.0,0.00038356,14]
[334318877,1722964248188,-500.0,0.00038356,14]
[334318878,1722964248198,-500.0,0.00038356,14]
[334318879,1722964248207,-500.0,0.00038356,14]
[334318880,1722964248217,-3161.5,0.00038356,14]
[334318881,1722964248226,-500.0,0.00038356,14]
[334318882,1722964248236,-265.11945252,0.00038356,14]
[334318883,1722964248245,-427.15350502,0.00038356,14]
[334318884,1722964248254,-500.0,0.00038356,14]
[334318885,1722964248264,-500.0,0.00038356,14]
[334318886,1722964248273,-500.0,0.00038356,14]
[334318887,1722964248282,-500.0,0.00038356,14]